fUSD/lending_fUSD_20240330
["ID","MTS","AMOUNT","RATE_DAILY","PERIOD"]
[321039482,1711810232205,-242.21518761,0.00032762,4]
[321039483,1711810232215,-1623.07808598,0.00032762,4]
[321039484,1711810232225,-159.1972564,0.0003278,2]
[321039485,1711810232235,-487.31,0.00035589,2]
[321039486,1711810232245,-548.95740438,0.00035995,4]
[321039487,1711810232256,-235.38984912,0.00035998,7]
[321039488,1711810232266,-151.02,0.00037468,2]
[321039489,1711810232275,-499.99,0.00037468,2]
[321039490,1711810232292,-231.32,0.00037502,2]
[321039491,1711810232302,-9296.2,0.00037531,2]
[321039492,1711810232313,-228.85,0.00037544,2]
[321039493,1711810232324,-693.72,0.00037544,2]
[321039494,1711810232334,-26088.08502206,0.00037557,4]
[321039495,1711810232343,-741.87166249,0.00037558,2]
[321039496,1711810232364,-2023.61833751,0.00037558,2]
[321039497,1711810232374,-850.94,0.00037558,2]
[321039498,1711810232384,-1421.66,0.00037558,2]
[321039499,1711810232394,-170.59,0.00037563,2]
[321039500,1711810232404,-200.0,0.0003757,2]
[321039501,1711810232413,-325.26338844,0.00037585,2]
[321039502,1711810232426,-1606.46661156,0.00037585,2]
[321039503,1711810232435,-1000.0,0.00037588,2]
[321039504,1711810232445,-325.84,0.00037588,2]
[321039505,1711810232455,-500.0,0.00037605,2]
[321039506,1711810232465,-500.0,0.00037611,2]
[321039507,1711810232474,-150.0,0.00037629,2]
[321039508,1711810232484,-1738.95,0.00037635,2]
[321039509,1711810232493,-342.11,0.00037817,2]
[321039510,1711810232503,-674.50898016,0.00037826,2]
[321039511,1711810232515,-2494.34101984,0.00037826,2]
[321039512,1711810232525,-250.0,0.00037826,2]
[321039513,1711810232535,-500.0,0.00037838,2]
[321039514,1711810232545,-353.5,0.00037846,2]
[321039516,1711810232554,-487.31,0.00037853,2]
[321039518,1711810232564,-480.0,0.00037913,2]
[321039520,1711810232573,-353.5,0.0003795,2]
[321039521,1711810232582,-999.99,0.00037997,2]
[321039522,1711810232592,-1829.68297926,0.00037998,4]
[321039523,1711810232602,-150.99,0.00037998,2]
[321039524,1711810232611,-162.97,0.00038027,15]
[321039525,1711810232620,-353.5,0.00038054,2]
[321039526,1711810232630,-167.35,0.00038099,2]
[321039527,1711810232639,-353.5,0.00038157,2]
[321039528,1711810232648,-353.5,0.00038261,2]
[321039529,1711810232658,-1000.0,0.00038356,15]
[321039530,1711810232667,-353.5,0.00038365,2]
[321039531,1711810232677,-353.5,0.00038469,2]
[321039532,1711810232687,-219.59489401,0.00038573,2]
[321039533,1711810232698,-133.90510599,0.00038573,2]
[321039534,1711810232708,-353.5,0.00038676,2]
[321039535,1711810232717,-353.5,0.0003878,2]
[321039536,1711810232726,-353.5,0.00038884,2]
[321039537,1711810232736,-353.5,0.00038988,2]
[321039538,1711810232745,-353.5,0.00039092,2]
[321039539,1711810232754,-353.5,0.00039195,2]
[321039540,1711810232764,-511.88,0.00039253,2]
[321039541,1711810232773,-203.21489385,0.00039299,2]
[321039542,1711810232784,-150.28510615,0.00039299,2]
[321039543,1711810232795,-353.5,0.00039403,2]
[321039544,1711810232804,-975.0,0.000395,3]
[321039545,1711810232813,-353.5,0.00039507,2]
[321039546,1711810232823,-353.5,0.00039611,2]
[321039547,1711810232832,-353.5,0.00039714,2]
[321039548,1711810232841,-16927.13522308,0.000398,2]
[321039549,1711810232850,-1000.0,0.000398,2]
[321039550,1711810232859,-381.352816,0.000398,9]
[321039551,1711810232869,-353.5,0.00039818,2]
[321039552,1711810232878,-1134.52,0.0003989,10]
[321039553,1711810232887,-825.28583074,0.0003989,10]
[321039554,1711810232904,-120.15416926,0.0003989,10]
[321039555,1711810232914,-500.0,0.0003989,2]
[321039556,1711810232923,-183.09423158,0.00039898,2]
[321039557,1711810232932,-1072.13891575,0.000399,2]
[321039558,1711810232944,-1667.8918148,0.000399,2]
[321039559,1711810232956,-521.97670531,0.000399,2]
[321039560,1711810232978,-30854.30600666,0.000399,2]
[321039561,1711810232990,-706.87254436,0.000399,2]
[321039562,1711810233001,-557.49292306,0.000399,2]
[321039563,1711810233012,-284.49703418,0.000399,2]
[321039564,1711810233024,-945.53995782,0.000399,2]
[321039565,1711810233043,-3229.92819806,0.000399,2]
[321039566,1711810233053,-980.81610723,0.000399,2]
[321039567,1711810233065,-5564.94086119,0.000399,2]
[321039583,1711810238166,-787.86,0.0003989,10]
[321039585,1711810238176,-1225.43573025,0.000399,2]
[321039588,1711810238282,-92228.80730133,0.000399,2]
[321039589,1711810238295,-500.0,0.000399,2]
[321039590,1711810238305,-2218.27417623,0.000399,2]
[321039591,1711810238390,-6686.92101409,0.000399,2]
[321039648,1711810240206,-7145.24508135,0.000399,2]
[321039649,1711810240265,-9187.86681711,0.000399,2]
[321039650,1711810240278,-1666.79321985,0.000399,2]
[321039651,1711810240483,-1503.15315829,0.000399,2]
[321039667,1711810243205,-6150.41762214,0.000399,2]
[321039668,1711810243217,-3202.25654387,0.000399,2]
[321039669,1711810243261,-6548.4579825,0.000399,2]
[321039670,1711810243652,-10302.66354789,0.000399,2]
[321039671,1711810243664,-564.73660841,0.000399,2]
[321039715,1711810246331,-651.56085048,0.00039899,4]
[321039716,1711810246343,-288.9081801,0.00039899,4]
[321039717,1711810246353,-155.0,0.00039899,4]
[321039718,1711810246363,-10689.67502416,0.000399,2]
[321039719,1711810246375,-1287.1460073,0.000399,2]
[321039720,1711810246387,-752.99650872,0.000399,2]
[321039721,1711810246407,-996.27509641,0.000399,2]
[321039722,1711810246419,-299.33406665,0.000399,2]
[321039723,1711810246462,-650.01265228,0.000399,2]
[321039724,1711810246474,-175147.77487275,0.000399,2]
[321039725,1711810246485,-582.68872865,0.000399,2]
[321039726,1711810246494,-153.37917841,0.000399,6]
[321039727,1711810246504,-161.02408066,0.000399,2]
[321039728,1711810246514,-297.86106422,0.000399,15]
[321039729,1711810246524,-150.31488301,0.0003996,2]
[321039730,1711810246534,-3925.58750235,0.00039987,4]
[321039731,1711810246543,-155.0,0.00039988,4]
[321039732,1711810246554,-155.0,0.00039988,4]
[321039733,1711810246563,-404.94265568,0.00039988,4]
[321039734,1711810246573,-155.2177399,0.00039989,4]
[321039735,1711810246583,-214.5273441,0.00039989,4]
[321039736,1711810246592,-858.38313188,0.00039989,4]
[321039737,1711810246603,-155.2003905,0.00039989,4]
[321039738,1711810246613,-155.0,0.00039989,4]
[321039739,1711810246622,-6552.4240485,0.00039994,2]
[321039740,1711810246632,-12681.419997,0.00039994,2]
[321039741,1711810246641,-231.8431701,0.00039997,4]
[321039742,1711810246651,-361.03184535,0.00039998,4]
[321039743,1711810246661,-250.04326583,0.00039998,4]
[321039744,1711810246671,-205.4134644,0.00039998,4]
[321039745,1711810246680,-445.60928484,0.00039998,4]
[321039746,1711810246690,-373.63860962,0.00039998,4]
[321039747,1711810246700,-248.44551428,0.00039998,4]
[321039748,1711810246710,-191.37408895,0.00039998,4]
[321039749,1711810246720,-4174.77102397,0.00039998,4]
[321039750,1711810246729,-289.90882872,0.00039998,4]
[321039751,1711810246738,-232.24699034,0.00039998,4]
[321039752,1711810246748,-155.59751938,0.00039998,4]
[321039753,1711810246757,-1173.02236776,0.00039998,4]
[321039754,1711810246767,-2000.0,0.00039998,2]
[321039755,1711810246777,-1220.55596353,0.00039998,4]
[321039756,1711810246785,-200.05448893,0.00039998,4]
[321039757,1711810246795,-223.49312766,0.00039998,4]
[321039758,1711810246804,-155.37363475,0.00039998,4]
[321039759,1711810246814,-520.60897951,0.00039998,4]
[321039760,1711810246824,-199.01993502,0.00039998,4]
[321039761,1711810246834,-9030.78659323,0.00039998,4]
[321039762,1711810246843,-398.69349125,0.00039998,4]
[321039763,1711810246853,-400.0,0.00039998,2]
[321039764,1711810246863,-279.01762508,0.00039998,4]
[321039765,1711810246872,-182.61324904,0.00039998,4]
[321039766,1711810246881,-150.99,0.00039998,2]
[321039767,1711810246891,-192.13279198,0.00039999,4]
[321039768,1711810246900,-1111.48350798,0.00039999,4]
[321039769,1711810246910,-311.25359119,0.00039999,4]
[321039770,1711810246919,-463189.5310788,0.0004,2]
[321039771,1711810246940,-407.66643596,0.0004,2]
[321039772,1711810246951,-259673.92633878,0.0004,2]
[321039773,1711810246961,-5021.992754,0.0004,2]
[321039774,1711810300127,360.77796608,0.00042118,120]
[321039779,1711810326872,227.74,0.000155,2]
[321039781,1711810360157,1000.0,0.00042118,30]
[321039782,1711810360481,1000.0,0.00042118,30]
[321039783,1711810360823,1000.0,0.00042118,30]
[321039784,1711810361184,897.10144031,0.00042118,30]
[321039785,1711810386042,1358.24504296,0.00042118,30]
[321039790,1711810464186,959.0,0.00042118,30]
[321039792,1711810479747,30665.38188875,0.00042118,30]
[321039793,1711810480667,401.08296202,0.00042118,30]
[321039794,1711810545233,946.0,0.00042111,30]
[321039796,1711810636281,3172.08162488,0.00042111,30]
[321039801,1711810668642,187.0,0.00042111,30]
[321039802,1711810669642,187.0,0.00042111,30]
[321039803,1711810670595,187.0,0.00042111,30]
[321039804,1711810672149,200.0,0.00042111,30]
[321039806,1711810674658,174.0,0.00042111,30]
[321039815,1711810921240,2541.79287572,0.0002,2]
[321039816,1711811062998,959.0,0.00042113,30]
[321039818,1711811144369,946.0,0.00042116,30]
[321039825,1711811267210,187.0,0.00042116,30]
[321039826,1711811268197,187.0,0.00042116,30]
[321039827,1711811269173,300.0,0.00042116,30]
[321039838,1711811432438,-230.89,0.00029808,2]
[321039839,1711811432448,-300.0,0.00031668,2]
[321039840,1711811432458,-1722.99774125,0.00031999,4]
[321039841,1711811432551,-1426.4091431,0.00031999,4]
[321039842,1711811432560,-168.83236994,0.00032,2]
[321039843,1711811432570,-164.25883871,0.000329,2]
[321039844,1711811432580,-250.0,0.00033,3]
[321039845,1711811432589,-164.25883869,0.0003428,2]
[321039846,1711811432598,-300.0,0.00035,3]
[321039847,1711811432608,-512.95,0.00035355,2]
[321039848,1711811432618,-164.25883869,0.0003566,2]
[321039849,1711811432628,-481.08,0.0003566,2]
[321039850,1711811432639,-444.66,0.0003566,2]
[321039851,1711811432649,-499.99,0.0003566,2]
[321039852,1711811432658,-712.42245715,0.00035998,4]
[321039853,1711811432669,-266.87,0.00036417,2]
[321039854,1711811432679,-350.0,0.00037,3]
[321039855,1711811432689,-164.25883869,0.0003704,2]
[321039856,1711811432698,-20011.75,0.00037262,2]
[321039857,1711811432708,-2913.04,0.00037275,2]
[321039858,1711811432717,-300.05,0.00037276,2]
[321039859,1711811432727,-250.0,0.00037291,2]
[321039861,1711811432736,-2542.26,0.00037298,120]
[321039863,1711811432745,-3053.84,0.00037307,2]
[321039864,1711811432755,-400.0,0.00037334,2]
[321039865,1711811432764,-211.54,0.00037349,2]
[321039866,1711811432774,-150.72,0.00037427,2]
[321039867,1711811432783,-4223.05,0.00037568,2]
[321039869,1711811432793,-554.33,0.00037583,2]
[321039871,1711811432803,-150.0,0.00037599,2]
[321039872,1711811432812,-505.26,0.00037619,2]
[321039873,1711811432822,-512.95,0.00037619,2]
[321039874,1711811432833,-614.94,0.00037626,2]
[321039875,1711811432842,-250.0,0.00037631,2]
[321039876,1711811432857,-800.0,0.0003765,2]
[321039877,1711811432867,-365.15,0.0003765,2]
[321039878,1711811432876,-164.79,0.00038027,15]
[321039879,1711811432886,-186.24,0.00038074,2]
[321039880,1711811432896,-740.1,0.00038173,2]
[321039881,1711811432905,-740.1,0.00038183,2]
[321039882,1711811432915,-740.1,0.00038193,2]
[321039883,1711811432924,-740.1,0.00038203,2]
[321039884,1711811432934,-740.1,0.00038213,2]
[321039885,1711811432944,-740.1,0.00038223,2]
[321039886,1711811432953,-740.1,0.00038233,2]
[321039887,1711811432963,-740.1,0.00038243,2]
[321039888,1711811432972,-740.1,0.00038254,2]
[321039889,1711811432982,-740.1,0.00038264,2]
[321039890,1711811432991,-740.1,0.00038274,2]
[321039891,1711811433001,-740.1,0.00038284,2]
[321039892,1711811433010,-740.1,0.00038294,2]
[321039893,1711811433020,-740.1,0.00038304,2]
[321039894,1711811433030,-740.1,0.00038314,2]
[321039895,1711811433039,-740.1,0.00038324,2]
[321039896,1711811433049,-740.1,0.00038334,2]
[321039897,1711811433058,-740.1,0.00038344,2]
[321039898,1711811433068,-740.1,0.00038354,2]
[321039899,1711811433079,-1000.0,0.00038356,15]
[321039900,1711811433089,-740.1,0.00038364,2]
[321039901,1711811433098,-164.25883869,0.0003842,2]
[321039902,1711811433108,-170.68,0.00038658,2]
[321039903,1711811433118,-150.0,0.00038778,2]
[321039904,1711811433128,-200.0,0.00038808,2]
[321039905,1711811433137,-400.64373988,0.0003888,2]
[321039906,1711811433148,-161.99,0.00038924,2]
[321039907,1711811433158,-400.0,0.00039,3]
[321039908,1711811433167,-1373.91086028,0.00039,2]
[321039909,1711811433177,-1282.6,0.00039147,2]
[321039910,1711811433186,-1000.0,0.000395,2]
[321039911,1711811433196,-150.72,0.00039538,2]
[321039912,1711811433206,-656.55,0.00039588,10]
[321039913,1711811433216,-547.13,0.00039588,10]
[321039914,1711811433226,-455.94,0.00039588,10]
[321039915,1711811433236,-6333.1555463,0.00039597,2]
[321039916,1711811433245,-5687.0,0.00039598,2]
[321039917,1711811433255,-1211.0,0.00039598,2]
[321039918,1711811433265,-43018.0,0.00039598,2]
[321039919,1711811433274,-1191.751,0.00039598,2]
[321039920,1711811433284,-4777.0,0.00039598,2]
[321039921,1711811433294,-2452.0,0.00039598,2]
[321039922,1711811433303,-21665.31398459,0.00039647,2]
[321039923,1711811433313,-1811.46714255,0.00039647,2]
[321039924,1711811433322,-19562.7821,0.00039647,2]
[321039925,1711811433333,-600.0,0.000397,14]
[321039926,1711811433342,-3398.9435,0.000397,2]
[321039927,1711811433352,-277.10498104,0.00039746,4]
[321039928,1711811433362,-29287.3707,0.00039747,2]
[321039929,1711811433372,-23793.0687,0.00039747,2]
[321039930,1711811433381,-191.8788,0.000398,2]
[321039931,1711811433391,-500.0,0.000398,2]
[321039932,1711811433401,-1004.2402,0.000398,2]
[321039933,1711811433411,-3665.22889019,0.000398,13]
[321039934,1711811433420,-902.0482,0.000398,2]
[321039935,1711811433430,-442.0742,0.000398,2]
[321039936,1711811433440,-164.25883869,0.000398,2]
[321039937,1711811433449,-15943.2289,0.000398,2]
[321039938,1711811433459,-3037.1183,0.000398,2]
[321039939,1711811433469,-153.3791783,0.000398,5]
[321039940,1711811433478,-9946.1378,0.000398,2]
[321039941,1711811433488,-276.9581,0.000398,2]
[321039942,1711811433498,-14383.0918,0.000398,2]
[321039943,1711811433507,-1037.11921843,0.000398,4]
[321039944,1711811433516,-333.683714,0.000398,9]
[321039945,1711811433526,-1000.0,0.000398,2]
[321039946,1711811433537,-1300.0,0.000398,14]
[321039947,1711811433549,-2500.0,0.000398,2]
[321039948,1711811433560,-410.84053253,0.000398,2]
[321039949,1711811433576,-565.30393262,0.000398,2]
[321039950,1711811433587,-161.02408066,0.000398,2]
[321039951,1711811433597,-15130.27291825,0.00039847,2]
[321039952,1711811433606,-395.73754943,0.00039878,4]
[321039953,1711811433616,-472.10846,0.0003988,2]
[321039954,1711811433630,-512.95,0.00039883,2]
[321039955,1711811433640,-221.18732347,0.0003989,2]
[321039956,1711811433650,-157.72856215,0.00039894,13]
[321039957,1711811433659,-174.72762636,0.00039897,2]
[321039958,1711811433670,-563.50205483,0.00039898,2]
[321039959,1711811433680,-323.17336322,0.00039898,4]
[321039960,1711811433689,-4697.47901234,0.00039898,4]
[321039961,1711811433698,-179.61364292,0.00039898,4]
[321039962,1711811433708,-407.37982152,0.00039898,4]
[321039963,1711811433719,-201.70306154,0.00039898,4]
[321039964,1711811433742,-808.32318404,0.00039898,4]
[321039965,1711811433766,-195.28360126,0.00039898,4]
[321039966,1711811433789,-311.98057188,0.00039898,4]
[321039967,1711811433814,-489.17760572,0.00039898,7]
[321039968,1711811433839,-2879.74439731,0.00039898,2]
[321039969,1711811433864,-377.07530359,0.00039898,4]
[321039970,1711811433879,-1238.94442072,0.00039898,4]
[321039971,1711811433889,-437.73313324,0.00039898,4]
[321039972,1711811433898,-157.27631021,0.00039898,4]
[321039973,1711811433908,-155.0,0.00039898,4]
[321039974,1711811433918,-192.21755063,0.00039898,4]
[321039975,1711811433927,-358.63461831,0.00039898,4]
[321039976,1711811433936,-303.76984911,0.00039898,4]
[321039977,1711811433946,-155.0,0.00039898,4]
[321039978,1711811433955,-309.55652023,0.00039898,4]
[321039979,1711811433964,-155.34283485,0.00039898,4]
[321039980,1711811433974,-1043.94196735,0.00039898,4]
[321039981,1711811433984,-236.66432559,0.00039898,2]
[321039982,1711811433994,-2162.89736187,0.00039898,4]
[321039983,1711811434002,-345.21232142,0.00039898,4]
[321039984,1711811434012,-203.26531134,0.00039898,4]
[321039985,1711811434021,-1044.3989323,0.00039898,2]
[321039986,1711811434030,-824.12462729,0.00039899,4]
[321039987,1711811434040,-218.90140169,0.00039899,4]
[321039988,1711811434049,-1660.73700094,0.00039899,30]
[321039989,1711811434059,-245000.0,0.000399,2]
[321039990,1711811434069,-145199.63695046,0.000399,2]
[321039991,1711811434457,-19551.75405428,0.000399,2]
[321039992,1711811434491,-1644.3989323,0.000399,2]
[321039993,1711811434513,-720.48790123,0.000399,2]
[321039994,1711811434524,-753.08526197,0.000399,2]
[321039995,1711811434535,-718.2001506,0.000399,2]
[321040031,1711811438354,-379.95,0.00039588,10]
[321040032,1711811438364,-62879.22551535,0.000399,2]
[321040033,1711811438376,-2480.4450406,0.000399,2]
[321040034,1711811438468,-129279.93974939,0.000399,2]
[321040035,1711811438480,-1670.29394622,0.000399,2]
[321040036,1711811438530,-1802.37028863,0.000399,2]
[321040037,1711811438656,-353473.01930897,0.000399,2]
[321040038,1711811438666,-2059.7175,0.000399,2]
[321040039,1711811438675,-3501.1814,0.000399,2]
[321040040,1711811438686,-100000.0,0.000399,2]
[321040041,1711811438696,-2000.0,0.000399,14]
[321040042,1711811438708,-7500.0,0.00039908,2]
[321040043,1711811438718,-221.18732347,0.00039993,2]
[321040044,1711811438728,-155.15797931,0.00039998,4]
[321040045,1711811438737,-1296.59171577,0.00039998,4]
[321040046,1711811438746,-156.43366822,0.00039998,4]
[321040047,1711811438755,-184.49385554,0.00039998,4]
[321040048,1711811438765,-200.0,0.00039998,2]
[321040049,1711811438774,-200.0,0.00039998,2]
[321040050,1711811438784,-200.0,0.00039998,2]
[321040051,1711811438798,-9322.35266152,0.00039999,4]
[321040052,1711811438807,-179.17589738,0.00039999,2]
[321040053,1711811438818,-5018.08151861,0.00039999,2]
[321040054,1711811438827,-4978.007246,0.0004,2]
[321040056,1711811438838,-346.79729616,0.0004,4]
[321040057,1711811438850,-296.52386774,0.0004,2]
[321040058,1711811438861,-3348.46694348,0.0004,4]
[321040059,1711811438871,-298.01509098,0.0004,120]
[321040060,1711811438880,-50425.19625282,0.0004,3]
[321040061,1711811438889,-818.85627905,0.0004,4]
[321040062,1711811438898,-45000.0,0.0004,2]
[321040063,1711811438909,-40000.0,0.0004,3]
[321040064,1711811438919,-1187.28074283,0.0004,7]
[321040065,1711811438928,-368.49469884,0.0004,2]
[321040066,1711811438938,-473.0,0.0004,15]
[321040067,1711811438948,-472.10846,0.0004,2]
[321040068,1711811438957,-472.10847,0.0004,2]
[321040069,1711811438967,-380.60964067,0.0004,2]
[321040070,1711811438977,-380.60964067,0.0004,2]
[321040071,1711811438988,-380.60964067,0.0004,2]
[321040072,1711811438998,-380.60964067,0.0004,2]
[321040073,1711811439007,-380.60964067,0.0004,2]
[321040074,1711811439016,-380.60964067,0.0004,2]
[321040075,1711811439026,-380.60964067,0.0004,2]
[321040076,1711811439035,-380.60964067,0.0004,2]
[321040077,1711811439045,-380.60964067,0.0004,2]
[321040078,1711811439055,-380.60964067,0.0004,2]
[321040079,1711811439065,-380.60964067,0.0004,2]
[321040080,1711811439076,-380.60964067,0.0004,2]
[321040081,1711811439087,-380.60964067,0.0004,2]
[321040082,1711811439096,-380.60964067,0.0004,2]
[321040083,1711811439106,-380.60964067,0.0004,2]
[321040084,1711811439115,-380.60964067,0.0004,2]
[321040085,1711811439124,-380.60964067,0.0004,2]
[321040086,1711811439133,-380.60964067,0.0004,2]
[321040087,1711811439143,-380.60964067,0.0004,2]
[321040088,1711811439153,-380.60964067,0.0004,2]
[321040089,1711811439162,-380.60964067,0.0004,2]
[321040090,1711811439172,-380.60964067,0.0004,2]
[321040091,1711811439182,-380.60964067,0.0004,2]
[321040092,1711811439191,-380.60964067,0.0004,2]
[321040093,1711811439200,-380.60964067,0.0004,2]
[321040094,1711811439209,-380.60964067,0.0004,2]
[321040095,1711811439219,-380.60964067,0.0004,2]
[321040096,1711811439228,-380.60964067,0.0004,2]
[321040097,1711811439238,-380.60964067,0.0004,2]
[321040098,1711811439247,-380.60964067,0.0004,2]
[321040099,1711811439257,-380.60964067,0.0004,2]
[321040100,1711811439269,-380.60964067,0.0004,2]
[321040101,1711811439280,-380.60964067,0.0004,2]
[321040102,1711811439289,-380.60964067,0.0004,2]
[321040103,1711811439301,-380.60964067,0.0004,2]
[321040104,1711811439310,-380.60964067,0.0004,2]
[321040105,1711811439319,-380.60964067,0.0004,2]
[321040106,1711811439329,-380.60964067,0.0004,2]
[321040107,1711811439340,-380.60964067,0.0004,2]
[321040108,1711811439350,-380.60964067,0.0004,2]
[321040109,1711811439358,-380.60964067,0.0004,2]
[321040110,1711811439368,-380.60964067,0.0004,2]
[321040111,1711811439377,-380.60964067,0.0004,2]
[321040112,1711811439386,-380.60964067,0.0004,2]
[321040113,1711811439396,-380.60964067,0.0004,2]
[321040114,1711811439405,-380.60964067,0.0004,2]
[321040115,1711811439414,-380.60964067,0.0004,2]
[321040116,1711811439424,-380.60964067,0.0004,2]
[321040117,1711811439434,-380.60964067,0.0004,2]
[321040118,1711811439444,-380.60964067,0.0004,2]
[321040119,1711811439453,-4169.4656574,0.00040003,2]
[321040120,1711811439462,-365391.6016739,0.00040003,2]
[321040121,1711811439472,-18689.725051,0.00040003,2]
[321040122,1711811439481,-8281.0268209,0.00040003,2]
[321040123,1711811439491,-1575.8726361,0.00040003,2]
[321040124,1711811439500,-186.24,0.00040058,2]
[321040125,1711811439510,-410.84053253,0.00040075,2]
[321040126,1711811439520,-333.68371396,0.00040117,9]
[321040127,1711811439529,-21665.31398458,0.00040132,2]
[321040128,1711811439539,-1811.4671425,0.00040132,2]
[321040129,1711811439548,-156.0,0.00040181,5]
[321040130,1711811439558,-472.10847,0.0004019,3]
[321040131,1711811439567,-167.0,0.0004021,2]
[321040132,1711811439576,-1000.0,0.00040267,2]
[321040133,1711811439586,-5028.0,0.00040278,3]
[321040134,1711811439596,-152.0,0.00040312,3]
[321040135,1711811439606,-203.027959,0.00040329,15]
[321040136,1711811439615,-410.84053253,0.0004035,2]
[321040137,1711811439628,-614.94,0.00040366,2]
[321040138,1711811439639,-6632.65633507,0.00040382,2]
[321040139,1711811439648,-333.68371396,0.00040433,9]
[321040140,1711811439658,-472.10846,0.000405,4]
[321040141,1711811439678,-150.0,0.0004051,2]
[321040142,1711811439701,-3665.22889017,0.00040527,14]
[321040143,1711811439722,-21665.31398458,0.00040616,2]
[321040144,1711811439744,-1811.4671425,0.00040616,2]
[321040145,1711811439766,-410.84053253,0.00040625,2]
[321040146,1711811439789,-200.0,0.00040653,15]
[321040147,1711811439809,-800.0,0.00040653,15]
[321040148,1711811439832,-500.0,0.00040653,20]
[321040149,1711811439858,-200.0,0.00040653,20]
[321040150,1711811439878,-153.3791783,0.00040665,9]
[321040151,1711811439888,-2700.0,0.000407,14]
[321040152,1711811439897,-333.68371396,0.0004075,10]
[321040153,1711811439907,-3400.0,0.000408,14]
[321040154,1711811439917,-472.10847,0.0004081,6]
[321040155,1711811439927,-4821.24114706,0.000409,15]
[321040156,1711811439936,-150.0,0.000409,6]
[321040157,1711811439946,-600.0,0.000409,14]
[321040158,1711811439955,-410.84053253,0.000409,2]
[321040159,1711811439965,-673.67666086,0.000409,33]
[321040160,1711811439974,-10775.69925126,0.000409,2]
[321040161,1711811439983,-824.68406979,0.000409,2]
[321040162,1711811439993,-1208.18931218,0.000409,2]
[321040163,1711811440004,-2205.34079924,0.000409,2]
[321040164,1711811440013,-156.96928883,0.000409,2]
[321040165,1711811440023,-447.61628868,0.000409,2]
[321040166,1711811440033,-167.96419123,0.000409,120]
[321040167,1711811440042,-678.0,0.00040942,15]
[321040168,1711811440051,-678.0,0.00040952,15]
[321040169,1711811440061,-10000.0,0.00040958,2]
[321040170,1711811440071,-678.0,0.00040962,15]
[321040171,1711811440081,-150.5,0.0004097,15]
[321040172,1711811440092,-150.5,0.0004097,15]
[321040173,1711811440102,-150.5,0.0004097,15]
[321040174,1711811440111,-1243.0,0.0004097,15]
[321040175,1711811440121,-3528.0094024,0.00040972,2]
[321040176,1711811440133,-309177.5091087,0.00040972,2]
[321040177,1711811440142,-15814.3827355,0.00040972,2]
[321040178,1711811440152,-7002.26708,0.00040972,2]
[321040179,1711811440163,-1333.430692,0.00040972,2]
[321040180,1711811440173,-150.5,0.0004098,15]
[321040181,1711811440183,-150.5,0.0004098,15]
[321040182,1711811440193,-150.5,0.0004098,15]
[321040183,1711811440203,-1243.0,0.0004098,15]
[321040184,1711811440213,-150.5,0.0004099,15]
[321040185,1711811440223,-150.5,0.0004099,15]
[321040186,1711811440233,-150.5,0.0004099,15]
[321040187,1711811440243,-1243.0,0.0004099,15]
[321040188,1711811440252,-221.18732347,0.0004099,2]
[321040189,1711811440262,-165.7454,0.00040995,2]
[321040190,1711811440271,-15636.86364092,0.00040999,6]
[321040191,1711811440280,-300.0,0.00040999,2]
[321040192,1711811440291,-300.0,0.00040999,2]
[321040193,1711811440301,-300.0,0.00040999,2]
[321040194,1711811440311,-300.0,0.00040999,2]
[321040195,1711811440322,-300.0,0.00040999,2]
[321040196,1711811440332,-300.0,0.00040999,2]
[321040197,1711811440342,-300.0,0.00040999,2]